[Event "Titled Tuesday Blitz May 9 Early 2023"]
[White "Erzhanov, Arman"]
[Black "Balint, Vilmos"]
[WhiteFideId "4138821"]
[BlackFideId "718050"]
[WhiteElo "2138"]
[BlackElo "2034"]
[Result "1-0"]
[Round "07"]
[TimeControl "180+2"]
[Date "2023.05.09"]
[WhiteClock "0:01:35"]
[BlackClock "0:00:17"]

1. e4 {[%clk 0:03:00]}  e6 {[%clk 0:02:46]} 2. b3 {[%clk 0:02:58]}  d5 {[%clk 0:02:45]} 3. Bb2 {[%clk 0:02:58]}  dxe4 {[%clk 0:02:46]} 4. Nc3 {[%clk 0:02:58]}  Nf6 {[%clk 0:02:46]} 5. Qe2 {[%clk 0:02:59]}  Bb4 {[%clk 0:02:46]} 6. Nxe4 {[%clk 0:02:57]}  Nxe4 {[%clk 0:02:44]} 7. O-O-O {[%clk 0:02:57]}  Nf6 {[%clk 0:02:39]} 8. Nf3 {[%clk 0:02:56]}  O-O {[%clk 0:02:37]} 9. g4 {[%clk 0:02:56]}  Nc6 {[%clk 0:02:31]} 10. g5 {[%clk 0:02:55]}  Nd5 {[%clk 0:02:31]} 11. h4 {[%clk 0:02:53]}  Qe7 {[%clk 0:02:27]} 12. Qe4 {[%clk 0:02:53]}  f5 {[%clk 0:02:22]} 13. gxf6 {[%clk 0:02:51]}  Nxf6 {[%clk 0:02:19]} 14. Qc4 {[%clk 0:02:44]}  Ba3 {[%clk 0:02:19]} 15. Rg1 {[%clk 0:02:43]}  Bxb2+ {[%clk 0:02:18]} 16. Kxb2 {[%clk 0:02:44]}  Kh8 {[%clk 0:02:16]} 17. Bd3 {[%clk 0:02:45]}  e5 {[%clk 0:02:14]} 18. Rde1 {[%clk 0:02:44]}  Be6 {[%clk 0:02:01]} 19. Qb5 {[%clk 0:02:43]}  e4 {[%clk 0:01:51]} 20. Ng5 {[%clk 0:02:38]}  Bd5 {[%clk 0:01:36]} 21. Qa4 {[%clk 0:02:12]}  Qb4 {[%clk 0:01:13]} 22. Qxb4 {[%clk 0:02:11]}  Nxb4 {[%clk 0:01:13]} 23. Bf1 {[%clk 0:02:08]}  h6 {[%clk 0:01:10]} 24. Nh3 {[%clk 0:02:07]}  Nh5 {[%clk 0:01:02]} 25. Bg2 {[%clk 0:02:06]}  Nf4 {[%clk 0:00:59]} 26. Nxf4 {[%clk 0:02:06]}  Rxf4 {[%clk 0:00:59]} 27. Re2 {[%clk 0:02:06]}  Rxh4 {[%clk 0:00:55]} 28. a3 {[%clk 0:02:05]}  Nc6 {[%clk 0:00:54]} 29. c4 {[%clk 0:02:05]}  Bf7 {[%clk 0:00:50]} 30. Rxe4 {[%clk 0:02:04]}  Rxe4 {[%clk 0:00:48]} 31. Bxe4 {[%clk 0:02:05]}  Re8 {[%clk 0:00:44]} 32. d3 {[%clk 0:02:06]}  Ne5 {[%clk 0:00:42]} 33. Kc3 {[%clk 0:02:06]}  c6 {[%clk 0:00:42]} 34. f4 {[%clk 0:02:06]}  Nd7 {[%clk 0:00:42]} 35. b4 {[%clk 0:02:03]}  Nf6 {[%clk 0:00:39]} 36. Bf5 {[%clk 0:02:03]}  Be6 {[%clk 0:00:39]} 37. Bg6 {[%clk 0:02:03]}  Rd8 {[%clk 0:00:34]} 38. d4 {[%clk 0:02:02]}  Bg4 {[%clk 0:00:31]} 39. Re1 {[%clk 0:02:01]}  Kg8 {[%clk 0:00:27]} 40. Re7 {[%clk 0:02:01]}  Rd7 {[%clk 0:00:28]} 41. Re5 {[%clk 0:02:00]}  Bf3 {[%clk 0:00:25]} 42. a4 {[%clk 0:01:59]}  h5 {[%clk 0:00:24]} 43. b5 {[%clk 0:01:57]}  h4 {[%clk 0:00:24]} 44. Re3 {[%clk 0:01:55]}  Bg4 {[%clk 0:00:21]} 45. a5 {[%clk 0:01:51]}  Kf8 {[%clk 0:00:20]} 46. a6 {[%clk 0:01:49]}  bxa6 {[%clk 0:00:19]} 47. bxc6 {[%clk 0:01:49]}  Re7 {[%clk 0:00:20]} 48. Rd3 {[%clk 0:01:45]}  h3 {[%clk 0:00:20]} 49. Rd2 {[%clk 0:01:45]}  Bf3 {[%clk 0:00:20]} 50. d5 {[%clk 0:01:43]}  Bg2 {[%clk 0:00:20]} 51. d6 {[%clk 0:01:43]}  Re3+ {[%clk 0:00:20]} 52. Kd4 {[%clk 0:01:43]}  Rf3 {[%clk 0:00:20]} 53. c7 {[%clk 0:01:40]}  Rxf4+ {[%clk 0:00:20]} 54. Kc5 {[%clk 0:01:38]}  Nd7+ {[%clk 0:00:18]} 55. Kb4 {[%clk 0:01:36]}  Nb6 {[%clk 0:00:17]} 56. d7 {[%clk 0:01:36]}  Rxc4+ {[%clk 0:00:17]} 57. Kb3 {[%clk 0:01:36]}  Nxd7 {[%clk 0:00:17]} 58. Rxd7 {[%clk 0:01:36]}  h2 {[%clk 0:00:17]} 59. Kxc4 {[%clk 0:01:36]}  h1=Q {[%clk 0:00:17]} 60. c8=Q# {[%clk 0:01:35]} 1-0


[Site "https://www.chess.com"]

[Event "Titled Tuesday Blitz May 9 Early 2023"]
[White "Alahakoon, Isuru"]
[Black "egorchess95"]
[WhiteFideId "9900993"]
[WhiteElo "1953"]
[BlackElo "2538"]
[Result "0-1"]
[Round "07"]
[TimeControl "180+2"]
[Date "2023.05.09"]
[WhiteClock "0:00:00"]
[BlackClock "0:00:59"]

1. Nf3 {[%clk 0:03:00]}  d6 {[%clk 0:02:59]} 2. d4 {[%clk 0:03:00]}  Nf6 {[%clk 0:02:59]} 3. Nc3 {[%clk 0:03:00]}  g6 {[%clk 0:02:59]} 4. e4 {[%clk 0:03:00]}  Bg7 {[%clk 0:03:00]} 5. Bf4 {[%clk 0:02:58]}  c6 {[%clk 0:02:52]} 6. Qd2 {[%clk 0:02:57]}  b5 {[%clk 0:02:53]} 7. Bd3 {[%clk 0:02:48]}  O-O {[%clk 0:02:49]} 8. O-O-O {[%clk 0:02:41]}  b4 {[%clk 0:02:49]} 9. Ne2 {[%clk 0:02:40]}  Qa5 {[%clk 0:02:49]} 10. Kb1 {[%clk 0:02:39]}  Be6 {[%clk 0:02:50]} 11. Nc1 {[%clk 0:02:39]}  c5 {[%clk 0:02:47]} 12. d5 {[%clk 0:02:27]}  Bd7 {[%clk 0:02:47]} 13. h4 {[%clk 0:02:24]}  c4 {[%clk 0:02:46]} 14. Bxc4 {[%clk 0:02:23]}  Nxe4 {[%clk 0:02:46]} 15. Qe3 {[%clk 0:02:22]}  f5 {[%clk 0:02:19]} 16. Ng5 {[%clk 0:02:15]}  Na6 {[%clk 0:01:52]} 17. Bxa6 {[%clk 0:02:00]}  Qxa6 {[%clk 0:01:24]} 18. Nxe4 {[%clk 0:01:59]}  fxe4 {[%clk 0:01:25]} 19. h5 {[%clk 0:01:48]}  Rfc8 {[%clk 0:01:25]} 20. hxg6 {[%clk 0:01:44]}  hxg6 {[%clk 0:01:26]} 21. Bh6 {[%clk 0:01:38]}  Bf6 {[%clk 0:01:19]} 22. Bg5 {[%clk 0:01:07]}  Bg7 {[%clk 0:01:19]} 23. Bh6 {[%clk 0:00:57]}  Ba4 {[%clk 0:01:05]} 24. Bxg7 {[%clk 0:00:45]}  Bxc2+ {[%clk 0:01:00]} 25. Ka1 {[%clk 0:00:39]}  Kxg7 {[%clk 0:01:01]} 26. Qh6+ {[%clk 0:00:19]}  Kf7 {[%clk 0:01:01]} 27. Qh7+ {[%clk 0:00:19]}  Ke8 {[%clk 0:01:01]} 28. Qxg6+ {[%clk 0:00:19]}  Kd7 {[%clk 0:01:02]} 29. Qe6+ {[%clk 0:00:19]}  Kc7 {[%clk 0:01:02]} 30. Qxe7+ {[%clk 0:00:19]}  Kb8 {[%clk 0:01:02]} 31. Rd4 {[%clk 0:00:15]}  Qb6 {[%clk 0:01:01]} 32. Ne2 {[%clk 0:00:00]}  Bd3 {[%clk 0:00:59]} 0-1


[Site "https://www.chess.com"]

[Event "Titled Tuesday Blitz May 9 Early 2023"]
[White "Yonal, Timur"]
[Black "Yelisieiev, Yevhenii"]
[WhiteFideId "44115725"]
[BlackFideId "14139642"]
[WhiteElo "1966"]
[BlackElo "2403"]
[Result "0-1"]
[Round "07"]
[TimeControl "180+2"]
[Date "2023.05.09"]
[WhiteClock "0:00:00"]
[BlackClock "0:00:03"]

1. e4 {[%clk 0:03:00]}  d6 {[%clk 0:02:59]} 2. d4 {[%clk 0:02:58]}  Nf6 {[%clk 0:03:00]} 3. Nc3 {[%clk 0:02:58]}  e5 {[%clk 0:03:01]} 4. dxe5 {[%clk 0:02:58]}  dxe5 {[%clk 0:03:02]} 5. Qxd8+ {[%clk 0:02:58]}  Kxd8 {[%clk 0:03:03]} 6. Bc4 {[%clk 0:02:58]}  Ke8 {[%clk 0:03:02]} 7. h3 {[%clk 0:02:52]}  c6 {[%clk 0:02:44]} 8. Be3 {[%clk 0:02:51]}  Bb4 {[%clk 0:02:43]} 9. f3 {[%clk 0:02:49]}  Nbd7 {[%clk 0:02:40]} 10. O-O-O {[%clk 0:02:48]}  b5 {[%clk 0:02:36]} 11. Bb3 {[%clk 0:02:47]}  a5 {[%clk 0:02:36]} 12. a4 {[%clk 0:02:45]}  Bc5 {[%clk 0:02:09]} 13. Bxc5 {[%clk 0:02:27]}  Nxc5 {[%clk 0:02:09]} 14. axb5 {[%clk 0:02:27]}  Nxb3+ {[%clk 0:02:07]} 15. cxb3 {[%clk 0:02:28]}  cxb5 {[%clk 0:02:04]} 16. Nxb5 {[%clk 0:02:29]}  Ke7 {[%clk 0:02:04]} 17. Nc7 {[%clk 0:01:56]}  Rb8 {[%clk 0:02:02]} 18. Nd5+ {[%clk 0:01:54]}  Nxd5 {[%clk 0:02:02]} 19. Rxd5 {[%clk 0:01:55]}  Be6 {[%clk 0:01:18]} 20. Rxa5 {[%clk 0:01:50]}  Rxb3 {[%clk 0:01:13]} 21. Ne2 {[%clk 0:01:48]}  Rhb8 {[%clk 0:01:07]} 22. Rxe5 {[%clk 0:01:06]}  Rxb2 {[%clk 0:01:01]} 23. Nc3 {[%clk 0:01:02]}  Rxg2 {[%clk 0:00:46]} 24. Rd1 {[%clk 0:00:54]}  Rbb2 {[%clk 0:00:26]} 25. Rd3 {[%clk 0:00:53]}  Rgc2+ {[%clk 0:00:22]} 26. Kd1 {[%clk 0:00:51]}  Kf6 {[%clk 0:00:19]} 27. Rc5 {[%clk 0:00:45]}  Kg6 {[%clk 0:00:14]} 28. f4 {[%clk 0:00:43]}  Bb3 {[%clk 0:00:11]} 29. f5+ {[%clk 0:00:17]}  Kh6 {[%clk 0:00:10]} 30. Ke1 {[%clk 0:00:09]}  Rc1+ {[%clk 0:00:10]} 31. Nd1 {[%clk 0:00:08]}  Rxd1+ {[%clk 0:00:03]} 32. Rxd1 {[%clk 0:00:07]}  Bxd1 {[%clk 0:00:02]} 33. Kxd1 {[%clk 0:00:07]}  Rh2 {[%clk 0:00:03]} 34. Rc3 {[%clk 0:00:00]}  Kg5 {[%clk 0:00:03]} 0-1


[Site "https://www.chess.com"]

[Event "Titled Tuesday Blitz May 9 Early 2023"]
[White "Baghdasaryan, Vahe"]
[Black "Wimalasuriya, Kasun M."]
[WhiteFideId "13303139"]
[BlackFideId "9906789"]
[WhiteElo "2216"]
[BlackElo "2239"]
[Result "1/2-1/2"]
[Round "07"]
[TimeControl "180+2"]
[Date "2023.05.09"]
[WhiteClock "0:00:03"]
[BlackClock "0:00:28"]

1. e4 {[%clk 0:03:00]}  c5 {[%clk 0:02:55]} 2. Nf3 {[%clk 0:03:00]}  d6 {[%clk 0:02:55]} 3. d4 {[%clk 0:02:56]}  cxd4 {[%clk 0:02:55]} 4. Nxd4 {[%clk 0:02:57]}  Nf6 {[%clk 0:02:55]} 5. Nc3 {[%clk 0:02:57]}  e5 {[%clk 0:02:54]} 6. Nb3 {[%clk 0:02:42]}  Be6 {[%clk 0:02:53]} 7. f3 {[%clk 0:02:40]}  Be7 {[%clk 0:02:52]} 8. Be3 {[%clk 0:02:38]}  O-O {[%clk 0:02:51]} 9. Qd2 {[%clk 0:02:37]}  d5 {[%clk 0:02:51]} 10. exd5 {[%clk 0:02:32]}  Nxd5 {[%clk 0:02:48]} 11. Nxd5 {[%clk 0:02:32]}  Qxd5 {[%clk 0:02:48]} 12. Qxd5 {[%clk 0:02:24]}  Bxd5 {[%clk 0:02:48]} 13. O-O-O {[%clk 0:02:24]}  Be6 {[%clk 0:02:48]} 14. Nc5 {[%clk 0:02:14]}  Bxc5 {[%clk 0:02:47]} 15. Bxc5 {[%clk 0:02:14]}  Rc8 {[%clk 0:02:47]} 16. Bd6 {[%clk 0:02:11]}  Nc6 {[%clk 0:02:46]} 17. Kb1 {[%clk 0:02:01]}  f6 {[%clk 0:02:45]} 18. Bd3 {[%clk 0:01:53]}  Rd8 {[%clk 0:02:42]} 19. Be4 {[%clk 0:01:53]}  Rac8 {[%clk 0:02:40]} 20. c3 {[%clk 0:01:51]}  Rd7 {[%clk 0:02:35]} 21. Rd2 {[%clk 0:01:43]}  Rcd8 {[%clk 0:02:35]} 22. Rhd1 {[%clk 0:01:42]}  Kf7 {[%clk 0:02:28]} 23. g4 {[%clk 0:01:37]}  g6 {[%clk 0:02:28]} 24. Kc1 {[%clk 0:01:23]}  Bxa2 {[%clk 0:02:15]} 25. Bc5 {[%clk 0:01:12]}  Rxd2 {[%clk 0:02:13]} 26. Rxd2 {[%clk 0:01:13]}  Rxd2 {[%clk 0:02:13]} 27. Kxd2 {[%clk 0:01:11]}  Ke6 {[%clk 0:02:12]} 28. b4 {[%clk 0:01:06]}  Bd5 {[%clk 0:02:09]} 29. b5 {[%clk 0:01:01]}  Na5 {[%clk 0:02:05]} 30. Bxa7 {[%clk 0:00:58]}  f5 {[%clk 0:01:58]} 31. gxf5+ {[%clk 0:00:45]}  gxf5 {[%clk 0:01:58]} 32. Bd3 {[%clk 0:00:44]}  Nc4+ {[%clk 0:01:50]} 33. Ke2 {[%clk 0:00:33]}  e4 {[%clk 0:01:31]} 34. fxe4 {[%clk 0:00:33]}  fxe4 {[%clk 0:01:31]} 35. Bc2 {[%clk 0:00:32]}  Nd6 {[%clk 0:01:26]} 36. b6 {[%clk 0:00:30]}  Kf5 {[%clk 0:01:19]} 37. Ke3 {[%clk 0:00:25]}  Bc6 {[%clk 0:01:13]} 38. Bb3 {[%clk 0:00:18]}  Nb5 {[%clk 0:00:56]} 39. c4 {[%clk 0:00:18]}  Nd6 {[%clk 0:00:53]} 40. Bb8 {[%clk 0:00:18]}  Nf7 {[%clk 0:00:51]} 41. c5 {[%clk 0:00:17]}  Ne5 {[%clk 0:00:48]} 42. Bg8 {[%clk 0:00:17]}  h5 {[%clk 0:00:39]} 43. Bh7+ {[%clk 0:00:16]}  Ke6 {[%clk 0:00:39]} 44. Bxe4 {[%clk 0:00:15]}  Ng4+ {[%clk 0:00:34]} 45. Kd4 {[%clk 0:00:15]}  Bxe4 {[%clk 0:00:32]} 46. Kxe4 {[%clk 0:00:15]}  Kd7 {[%clk 0:00:33]} 47. Be5 {[%clk 0:00:12]}  Kc6 {[%clk 0:00:32]} 48. Bd6 {[%clk 0:00:11]}  h4 {[%clk 0:00:27]} 49. h3 {[%clk 0:00:05]}  Nf2+ {[%clk 0:00:26]} 50. Kf3 {[%clk 0:00:05]}  Nxh3 {[%clk 0:00:26]} 51. Kg4 {[%clk 0:00:05]}  Nf2+ {[%clk 0:00:26]} 52. Kxh4 {[%clk 0:00:05]}  Ne4 {[%clk 0:00:27]} 53. Kg4 {[%clk 0:00:05]}  Nxd6 {[%clk 0:00:26]} 54. cxd6 {[%clk 0:00:04]}  Kxd6 {[%clk 0:00:27]} 55. Kf4 {[%clk 0:00:04]}  Kc6 {[%clk 0:00:28]} 56. Ke4 {[%clk 0:00:04]}  Kxb6 {[%clk 0:00:28]} 57. Kd4 {[%clk 0:00:04]}  Kb5 {[%clk 0:00:29]} 58. Kc3 {[%clk 0:00:04]}  Ka4 {[%clk 0:00:28]} 59. Kb2 {[%clk 0:00:03]}  Kb4 {[%clk 0:00:29]} 60. Kc2 {[%clk 0:00:03]}  b6 {[%clk 0:00:25]} 61. Kb2 {[%clk 0:00:02]}  b5 {[%clk 0:00:25]} 62. Kc2 {[%clk 0:00:03]}  Kc4 {[%clk 0:00:25]} 63. Kb2 {[%clk 0:00:03]}  b4 {[%clk 0:00:26]} 64. Kc2 {[%clk 0:00:02]}  b3+ {[%clk 0:00:26]} 65. Kb2 {[%clk 0:00:03]}  Kb4 {[%clk 0:00:26]} 66. Kb1 {[%clk 0:00:03]}  Kc3 {[%clk 0:00:26]} 67. Kc1 {[%clk 0:00:03]}  b2+ {[%clk 0:00:27]} 68. Kb1 {[%clk 0:00:03]}  Kb3 {[%clk 0:00:28]} 1/2-1/2


[Site "https://www.chess.com"]

[Event "Titled Tuesday Blitz May 9 Early 2023"]
[White "Spalir, Jernej"]
[Black "Schut, Han"]
[WhiteFideId "14606518"]
[BlackFideId "1005561"]
[WhiteElo "2282"]
[BlackElo "2024"]
[Result "1-0"]
[Round "07"]
[TimeControl "180+2"]
[Date "2023.05.09"]
[WhiteClock "0:01:16"]
[BlackClock "0:00:07"]

1. d4 {[%clk 0:03:00]}  Nf6 {[%clk 0:02:55]} 2. c4 {[%clk 0:03:00]}  g6 {[%clk 0:02:54]} 3. f3 {[%clk 0:03:00]}  Nc6 {[%clk 0:02:51]} 4. e4 {[%clk 0:02:58]}  e5 {[%clk 0:02:51]} 5. d5 {[%clk 0:02:58]}  Nd4 {[%clk 0:02:52]} 6. Ne2 {[%clk 0:02:58]}  c5 {[%clk 0:02:52]} 7. Nxd4 {[%clk 0:02:59]}  cxd4 {[%clk 0:02:50]} 8. Bd3 {[%clk 0:02:45]}  Bg7 {[%clk 0:02:37]} 9. O-O {[%clk 0:02:44]}  O-O {[%clk 0:02:36]} 10. c5 {[%clk 0:02:43]}  b6 {[%clk 0:02:23]} 11. b4 {[%clk 0:02:42]}  a5 {[%clk 0:02:23]} 12. Ba3 {[%clk 0:02:23]}  axb4 {[%clk 0:02:07]} 13. Bxb4 {[%clk 0:02:24]}  bxc5 {[%clk 0:02:07]} 14. Bxc5 {[%clk 0:02:24]}  d6 {[%clk 0:02:08]} 15. Bb4 {[%clk 0:02:23]}  Ba6 {[%clk 0:02:02]} 16. Bxa6 {[%clk 0:02:20]}  Rxa6 {[%clk 0:02:02]} 17. Nd2 {[%clk 0:02:20]}  Qa8 {[%clk 0:01:38]} 18. Qb3 {[%clk 0:02:19]}  Rb8 {[%clk 0:01:33]} 19. a3 {[%clk 0:02:19]}  Nd7 {[%clk 0:01:30]} 20. Nc4 {[%clk 0:02:17]}  Bf8 {[%clk 0:01:20]} 21. Rab1 {[%clk 0:02:16]}  f5 {[%clk 0:01:13]} 22. Qc2 {[%clk 0:02:07]}  f4 {[%clk 0:01:12]} 23. Qd2 {[%clk 0:02:02]}  Rc8 {[%clk 0:01:06]} 24. Na5 {[%clk 0:02:02]}  g5 {[%clk 0:00:40]} 25. Rfc1 {[%clk 0:01:59]}  Rxc1+ {[%clk 0:00:32]} 26. Rxc1 {[%clk 0:02:00]}  Nc5 {[%clk 0:00:33]} 27. Rb1 {[%clk 0:01:35]}  h6 {[%clk 0:00:28]} 28. h4 {[%clk 0:01:34]}  Kg7 {[%clk 0:00:19]} 29. hxg5 {[%clk 0:01:34]}  hxg5 {[%clk 0:00:20]} 30. Nc6 {[%clk 0:01:35]}  Kg6 {[%clk 0:00:16]} 31. Kf2 {[%clk 0:01:32]}  Bg7 {[%clk 0:00:13]} 32. Qe2 {[%clk 0:01:26]}  Qh8 {[%clk 0:00:11]} 33. Bxc5 {[%clk 0:01:23]}  Qh4+ {[%clk 0:00:10]} 34. Kg1 {[%clk 0:01:23]}  dxc5 {[%clk 0:00:10]} 35. Qxa6 {[%clk 0:01:23]}  Kh5 {[%clk 0:00:08]} 36. Ne7 {[%clk 0:01:17]}  g4 {[%clk 0:00:07]} 37. Qg6# {[%clk 0:01:16]} 1-0


[Site "https://www.chess.com"]

[Event "Titled Tuesday Blitz May 9 Early 2023"]
[White "Hayrapetyan, Hovik"]
[Black "Vivas Zamora, Fabian Ernesto"]
[WhiteFideId "13302639"]
[BlackFideId "3902480"]
[WhiteElo "2348"]
[BlackElo "2244"]
[Result "1-0"]
[Round "07"]
[TimeControl "180+2"]
[Date "2023.05.09"]
[WhiteClock "0:01:23"]
[BlackClock "0:00:00"]

1. d4 {[%clk 0:03:00]}  Nf6 {[%clk 0:02:54]} 2. c4 {[%clk 0:03:00]}  g6 {[%clk 0:02:52]} 3. Nc3 {[%clk 0:03:01]}  d5 {[%clk 0:02:52]} 4. cxd5 {[%clk 0:03:01]}  Nxd5 {[%clk 0:02:53]} 5. e4 {[%clk 0:03:02]}  Nxc3 {[%clk 0:02:53]} 6. bxc3 {[%clk 0:03:03]}  Bg7 {[%clk 0:02:54]} 7. Nf3 {[%clk 0:03:04]}  c5 {[%clk 0:02:54]} 8. Rb1 {[%clk 0:03:04]}  O-O {[%clk 0:02:52]} 9. Be2 {[%clk 0:03:05]}  cxd4 {[%clk 0:02:51]} 10. cxd4 {[%clk 0:03:06]}  Qa5+ {[%clk 0:02:52]} 11. Bd2 {[%clk 0:03:06]}  Qxa2 {[%clk 0:02:52]} 12. O-O {[%clk 0:03:07]}  Bg4 {[%clk 0:02:44]} 13. Bg5 {[%clk 0:02:58]}  h6 {[%clk 0:02:40]} 14. Be3 {[%clk 0:02:58]}  Nc6 {[%clk 0:01:48]} 15. d5 {[%clk 0:02:53]}  Na5 {[%clk 0:01:44]} 16. Bc5 {[%clk 0:02:41]}  b6 {[%clk 0:00:51]} 17. Bxe7 {[%clk 0:02:39]}  Rfe8 {[%clk 0:00:51]} 18. d6 {[%clk 0:02:35]}  Nc6 {[%clk 0:00:47]} 19. Bb5 {[%clk 0:02:34]}  Nxe7 {[%clk 0:00:38]} 20. Bxe8 {[%clk 0:02:31]}  Rxe8 {[%clk 0:00:38]} 21. dxe7 {[%clk 0:02:32]}  Qa3 {[%clk 0:00:36]} 22. h3 {[%clk 0:02:15]}  Bxf3 {[%clk 0:00:35]} 23. Qxf3 {[%clk 0:02:09]}  Qxf3 {[%clk 0:00:35]} 24. gxf3 {[%clk 0:02:10]}  Rxe7 {[%clk 0:00:36]} 25. Rfd1 {[%clk 0:02:10]}  Be5 {[%clk 0:00:31]} 26. Rd5 {[%clk 0:01:49]}  Kg7 {[%clk 0:00:30]} 27. Rc1 {[%clk 0:01:42]}  Bf4 {[%clk 0:00:22]} 28. Rc6 {[%clk 0:01:31]}  Rb7 {[%clk 0:00:21]} 29. Rb5 {[%clk 0:01:27]}  Kf8 {[%clk 0:00:09]} 30. Kf1 {[%clk 0:01:27]}  Ke7 {[%clk 0:00:09]} 31. Ke2 {[%clk 0:01:27]}  Kd7 {[%clk 0:00:08]} 32. Rf6 {[%clk 0:01:28]}  Ke7 {[%clk 0:00:08]} 33. Rxf4 {[%clk 0:01:27]}  h5 {[%clk 0:00:02]} 34. e5 {[%clk 0:01:25]}  a6 {[%clk 0:00:02]} 35. Rb2 {[%clk 0:01:24]}  b5 {[%clk 0:00:02]} 36. Rf6 {[%clk 0:01:24]}  a5 {[%clk 0:00:02]} 37. Ra6 {[%clk 0:01:23]}  a4 {[%clk 0:00:00]} 38. Rxa4 {[%clk 0:01:23]} 1-0


[Site "https://www.chess.com"]

[Event "Titled Tuesday Blitz May 9 Early 2023"]
[White "Gontcharov, Vladislav"]
[Black "Shubenkova, Veronika"]
[WhiteFideId "4123492"]
[BlackFideId "44124040"]
[WhiteElo "2420"]
[BlackElo "2060"]
[Result "1/2-1/2"]
[Round "07"]
[TimeControl "180+2"]
[Date "2023.05.09"]
[WhiteClock "0:00:12"]
[BlackClock "0:00:10"]

1. d4 {[%clk 0:03:00]}  e6 {[%clk 0:02:58]} 2. c4 {[%clk 0:02:57]}  d5 {[%clk 0:02:59]} 3. Nc3 {[%clk 0:02:57]}  Nf6 {[%clk 0:02:58]} 4. Bg5 {[%clk 0:02:55]}  Be7 {[%clk 0:02:58]} 5. e3 {[%clk 0:02:55]}  O-O {[%clk 0:02:57]} 6. Rc1 {[%clk 0:02:55]}  c6 {[%clk 0:02:57]} 7. Bd3 {[%clk 0:02:54]}  Nbd7 {[%clk 0:02:57]} 8. Nge2 {[%clk 0:02:53]}  Re8 {[%clk 0:02:56]} 9. O-O {[%clk 0:02:53]}  e5 {[%clk 0:02:55]} 10. cxd5 {[%clk 0:02:50]}  Nxd5 {[%clk 0:02:53]} 11. Bxe7 {[%clk 0:02:42]}  Nxe7 {[%clk 0:02:53]} 12. Qc2 {[%clk 0:02:32]}  Ng6 {[%clk 0:02:52]} 13. Rfd1 {[%clk 0:02:26]}  exd4 {[%clk 0:02:51]} 14. Nxd4 {[%clk 0:02:26]}  Qg5 {[%clk 0:02:43]} 15. Bf1 {[%clk 0:02:17]}  Nf6 {[%clk 0:02:41]} 16. Nf3 {[%clk 0:02:06]}  Qa5 {[%clk 0:02:40]} 17. Qa4 {[%clk 0:01:59]}  Qb6 {[%clk 0:02:33]} 18. b3 {[%clk 0:01:54]}  Bg4 {[%clk 0:02:31]} 19. Qd4 {[%clk 0:01:51]}  Bxf3 {[%clk 0:02:29]} 20. Qxb6 {[%clk 0:01:49]}  axb6 {[%clk 0:02:30]} 21. gxf3 {[%clk 0:01:49]}  Rad8 {[%clk 0:02:29]} 22. Na4 {[%clk 0:01:47]}  Nd5 {[%clk 0:02:10]} 23. f4 {[%clk 0:01:29]}  Nh4 {[%clk 0:01:57]} 24. Bg2 {[%clk 0:01:17]}  Nxg2 {[%clk 0:01:55]} 25. Kxg2 {[%clk 0:01:18]}  f5 {[%clk 0:01:53]} 26. Kf3 {[%clk 0:01:17]}  Kf7 {[%clk 0:01:53]} 27. Rd4 {[%clk 0:01:16]}  Ke6 {[%clk 0:01:48]} 28. Rcd1 {[%clk 0:01:16]}  Ke7 {[%clk 0:01:46]} 29. h4 {[%clk 0:01:06]}  b5 {[%clk 0:01:45]} 30. Nc5 {[%clk 0:01:05]}  b6 {[%clk 0:01:45]} 31. Na6 {[%clk 0:00:52]}  Rg8 {[%clk 0:01:02]} 32. a3 {[%clk 0:00:33]}  Nc3 {[%clk 0:00:28]} 33. Rc1 {[%clk 0:00:27]}  Rxd4 {[%clk 0:00:24]} 34. exd4 {[%clk 0:00:28]}  Nd5 {[%clk 0:00:24]} 35. Rxc6 {[%clk 0:00:27]}  Kd7 {[%clk 0:00:21]} 36. Rc1 {[%clk 0:00:24]}  Ra8 {[%clk 0:00:20]} 37. Nb4 {[%clk 0:00:23]}  Nxb4 {[%clk 0:00:20]} 38. axb4 {[%clk 0:00:23]}  Ra3 {[%clk 0:00:20]} 39. Rc3 {[%clk 0:00:24]}  Kd6 {[%clk 0:00:21]} 40. Ke3 {[%clk 0:00:24]}  Kd5 {[%clk 0:00:21]} 41. Kd3 {[%clk 0:00:24]}  Ra1 {[%clk 0:00:21]} 42. Rc8 {[%clk 0:00:24]}  Rd1+ {[%clk 0:00:21]} 43. Ke3 {[%clk 0:00:25]}  Re1+ {[%clk 0:00:20]} 44. Kd3 {[%clk 0:00:24]}  Rd1+ {[%clk 0:00:21]} 45. Ke3 {[%clk 0:00:22]}  Re1+ {[%clk 0:00:20]} 46. Kd2 {[%clk 0:00:22]}  Rb1 {[%clk 0:00:17]} 47. Rd8+ {[%clk 0:00:21]}  Ke4 {[%clk 0:00:17]} 48. Rd7 {[%clk 0:00:21]}  Rxb3 {[%clk 0:00:16]} 49. Rxg7 {[%clk 0:00:22]}  Rxb4 {[%clk 0:00:16]} 50. Rxh7 {[%clk 0:00:22]}  Rxd4+ {[%clk 0:00:16]} 51. Kc3 {[%clk 0:00:22]}  Rc4+ {[%clk 0:00:16]} 52. Kb3 {[%clk 0:00:22]}  Kxf4 {[%clk 0:00:16]} 53. Rg7 {[%clk 0:00:22]}  Kf3 {[%clk 0:00:15]} 54. h5 {[%clk 0:00:22]}  Rh4 {[%clk 0:00:15]} 55. Rg5 {[%clk 0:00:22]}  Kf4 {[%clk 0:00:15]} 56. Rg6 {[%clk 0:00:22]}  Rxh5 {[%clk 0:00:14]} 57. Rxb6 {[%clk 0:00:23]}  Rh2 {[%clk 0:00:14]} 58. Kc3 {[%clk 0:00:23]}  Rxf2 {[%clk 0:00:14]} 59. Rxb5 {[%clk 0:00:24]}  Rf3+ {[%clk 0:00:14]} 60. Kd2 {[%clk 0:00:24]}  Ra3 {[%clk 0:00:14]} 61. Ke2 {[%clk 0:00:24]}  Kg4 {[%clk 0:00:15]} 62. Kf2 {[%clk 0:00:20]}  Ra2+ {[%clk 0:00:14]} 63. Kf1 {[%clk 0:00:20]}  f4 {[%clk 0:00:14]} 64. Rb8 {[%clk 0:00:18]}  Ra3 {[%clk 0:00:11]} 65. Rf8 {[%clk 0:00:17]}  Kf3 {[%clk 0:00:11]} 66. Kg1 {[%clk 0:00:16]}  Ra1+ {[%clk 0:00:11]} 67. Kh2 {[%clk 0:00:17]}  Ke3 {[%clk 0:00:11]} 68. Kg2 {[%clk 0:00:17]}  Ra2+ {[%clk 0:00:10]} 69. Kf1 {[%clk 0:00:17]}  Rf2+ {[%clk 0:00:09]} 70. Kg1 {[%clk 0:00:17]}  Ra2 {[%clk 0:00:09]} 71. Kf1 {[%clk 0:00:17]}  Kf3 {[%clk 0:00:09]} 72. Kg1 {[%clk 0:00:15]}  Ra1+ {[%clk 0:00:09]} 73. Kh2 {[%clk 0:00:15]}  Rd1 {[%clk 0:00:09]} 74. Rf7 {[%clk 0:00:15]}  Rd6 {[%clk 0:00:08]} 75. Rf8 {[%clk 0:00:15]}  Rg6 {[%clk 0:00:08]} 76. Rf7 {[%clk 0:00:12]}  Ke3 {[%clk 0:00:08]} 77. Ra7 {[%clk 0:00:10]}  Kf3 {[%clk 0:00:07]} 78. Ra3+ {[%clk 0:00:09]}  Kg4 {[%clk 0:00:07]} 79. Kg2 {[%clk 0:00:09]}  Rb6 {[%clk 0:00:07]} 80. Kf2 {[%clk 0:00:09]}  Rb2+ {[%clk 0:00:07]} 81. Kf1 {[%clk 0:00:09]}  f3 {[%clk 0:00:07]} 82. Ra8 {[%clk 0:00:09]}  Rb5 {[%clk 0:00:07]} 83. Rg8+ {[%clk 0:00:09]}  Rg5 {[%clk 0:00:07]} 84. Rxg5+ {[%clk 0:00:09]}  Kxg5 {[%clk 0:00:07]} 85. Kf2 {[%clk 0:00:10]}  Kf4 {[%clk 0:00:07]} 86. Kf1 {[%clk 0:00:11]}  Ke3 {[%clk 0:00:08]} 87. Ke1 {[%clk 0:00:11]}  Ke4 {[%clk 0:00:08]} 88. Kf2 {[%clk 0:00:11]}  Kf4 {[%clk 0:00:09]} 89. Kf1 {[%clk 0:00:12]}  Kg4 {[%clk 0:00:09]} 90. Kf2 {[%clk 0:00:12]}  Kf4 {[%clk 0:00:10]} 1/2-1/2


[Site "https://www.chess.com"]